{"text_format":"3","workbook":"xlsx","n_sheets":2,"sheets":["GANO","MERKEZİ PUAN"],"read":"whole","date_system":"1900"}

{"sheet":"GANO","index":0,"n_rows":22,"n_cols":11,"rows_kept":22,"merged":[[0,0,0,10]]}
["GANO İLE YATAY GEÇİŞ BAŞVURULARI DEĞERLENDİRME ÇİZELGESİ"]
["S.NO","ÖĞRENCİNİN ADI SOYADI","ÖĞRENCİNİN GELDİĞİ PROGRAM","BAŞVURDUĞU PROGRAM","BELGE DURUMU","GANO","GANO \n% 60","YKS PUANI","YKS PUANI \n% 40","DEĞERLENDİRME PUANI","AÇIKLAMA"]
[1,"Fatma ULUTAŞ","Yaşlı Bakım","Yaşlı Bakım","Yok",{"$nulls":5},"Uygun Değil"]
[2,"Ali Osman KARABULUT","Deniz Ulaştırma","Yaşlı Bakım",{"$nulls":6},"Uygun Değil(Alan Dışı Başvuru)"]
[3,"Rabia BAHTİYAR","Fizyoterapi","Fizyoterapi","Var",73.86,{"$f":"F5*60%","v":44.315999999999995},307.67,{"$f":"H5*40%","v":123.06800000000001},{"$f":"SUM(G5,I5)","v":167.38400000000001},"Uygundur"]
[4,"Tuğba AKÇİ","İlk ve Acil Yardım","İlk ve Acil Yardım","Var",81.33,{"$f":"F6*60%","v":48.797999999999995},318.13,{"$f":"H6*40%","v":127.25200000000001},{"$f":"SUM(G6,I6)","v":176.05},"Uygundur"]
[5,"Rana AKTI","İlk ve Acil Yardım","İlk ve Acil Yardım","Var",85.06,{"$f":"F7*60%","v":51.036},299.45,{"$f":"H7*40%","v":119.78},{"$f":"SUM(G7,I7)","v":170.816},"Uygundur"]
[6,"Fatih Bülent ALNİAÇIK","Tıbbi Dökümantasyon ve Sekreterlik","İlk ve Acil Yardım",{"$nulls":6},"Uygun Değil(Alan Dışı Başvuru)"]
{"$rows_empty":9}
[{"$nulls":6},0,null,0,0]
[{"$nulls":6},0,null,0,0]
[{"$nulls":6},0,null,0,0]
[{"$nulls":6},0,null,0,0]
[{"$nulls":6},0,null,0,0]

{"sheet":"MERKEZİ PUAN","index":1,"n_rows":8,"n_cols":7,"rows_kept":8,"merged":[[0,0,0,6]]}
["(EK-1 MADDE) MERKEZİ PUAN İLE YATAY GEÇİŞ BAŞVURULARI DEĞERLENDİRME ÇİZELGESİ"]
["S.NO","ÖĞRENCİNİN ADI SOYADI","BAŞVURDUĞU PROGRAM","BELGE DURUMU","YKS PUANI","GEÇMEK İSTEDİĞİ PROGRAMIN TABAN PUANI","AÇIKLAMA"]
[1,"Tuğsem KURTOĞLU","İlk ve Acil Yardım ","Var",346.19352,332.78903,"Uygundur"]
[2,"Azize Sevilay GÖNEN","İlk ve Acil Yardım ","Var",336.9966,332.78903,"Uygundur"]
[3,"Hasan YILDIRIM","İlk ve Acil Yardım ","Var",258.5783,290.08091,"YKS Puanı Yetersiz"]
[4,"Fuat OĞUZ","İlk ve Acil Yardım ","Var",332.399,332.78903,"YKS Puanı Yetersiz"]
[5,"Fırat Oğuz","İlk ve Acil Yardım ","Var",233.353,332.78903,"YKS Puanı Yetersiz"]
[6,"Derya ŞAKÇI","İlk ve Acil Yardım ","Var",281.2226,332.78903,"YKS Puanı Yetersiz"]